Workbook

Sheet 開始
B1: このテンプレートについて
B2: この Web サイトの予算作成ツールを使用して、Web サイト、その利益、コストの初期投資を追跡します。
B3: 表に詳細を入力すると、合計と評価指標が自動的に計算されます。
B4: 注:
B5: 予算ツール ワークシートの列 A に詳細な手順が記載されています。このテキストは意図的に非表示になっています。テキストを削除するには、列 A を選択し、[削除] を選択します。テキストを再表示するには、列 A を選択し、フォントの色を変更します。
B6: ワークシートの表の詳細については、表内で Shift キーを押し、F10 キーを押して、[表] オプションを選択し、[代替テキスト] を選択します。

Sheet 予算ツール
B2: Quadrex ハードウェア
B3: Web サイトの予算作成ツール
B4: 2022-12-01
B6: 会社のデータ | C6: 割合
B7: 必要な利益率 | C7: 10%
B8: 税率 | C8: 30%
B10: Web サイトの初期投資 | C10: 年
B11: ハードウェア (サーバーなど) | C11: ¥25,000.00
B12: ソフトウェア (電子商取引カタログ ソフトウェアなど) | C12: ¥15,000.00
B13: 開発 (サードパーティのサイトの設計や開発など) | C13: ¥150,000.00
B14: 初期投資の合計 | C14: =SUBTOTAL(109,初期投資[年]) -> ¥190,000.00
B16: Web サイトからの利益 | C16: 1 年目 | D16: 2 年目 | E16: 3 年目
B17: 直販 | C17: ¥15,000.00 | D17: ¥50,000.00 | E17: ¥75,000.00
B18: プロモーション向上/販売員の効果によって生じた売上の増加分 | C18: ¥25,000.00 | D18: ¥25,000.00 | E18: ¥25,000.00
B19: パートナー参加が増えたことによる売上の増加分 | C19: ¥25,000.00 | D19: ¥25,000.00 | E19: ¥25,000.00
B20: 削減された交通費 | C20: ¥25,000.00 | D20: ¥25,000.00 | E20: ¥25,000.00
B21: 削減された顧客サービス費 | C21: ¥50,000.00 | D21: ¥50,000.00 | E21: ¥50,000.00
B22: 利益の合計 | C22: =SUBTOTAL(109,利益[1 年目]) -> ¥140,000.00 | D22: =SUBTOTAL(109,利益[2 年目]) -> ¥175,000.00 | E22: =SUBTOTAL(109,利益[3 年目]) -> ¥200,000.00
B24: コスト (初期設備投資を除く) | C24: 年 1 | D24: 年 2 | E24: 年 3
B25: 売上原価 | C25: ¥7,500.00 | D25: ¥25,000.00 | E25: ¥37,500.00
B26: 保守 | C26: ¥15,000.00 | D26: ¥15,000.00 | E26: ¥15,000.00
B27: プロジェクト管理、カスタマー サポート | C27: ¥35,000.00 | D27: ¥35,000.00 | E27: ¥35,000.00
B28: オンライン広告、検索エンジンの登録 | C28: ¥10,000.00 | D28: ¥10,000.00 | E28: ¥10,000.00
B29: 資本支出の減価償却費 (3 年間として計算) | C29: =初期投資[[#Totals],[年]]/3 -> ¥63,333.33 | D29: =初期投資[[#Totals],[年]]/3 -> ¥63,333.33 | E29: =初期投資[[#Totals],[年]]/3 -> ¥63,333.33
B30: 総コスト | C30: =SUBTOTAL(109,コスト[年 1]) -> ¥130,833.33 | D30: =SUBTOTAL(109,コスト[年 2]) -> ¥148,333.33 | E30: =SUBTOTAL(109,コスト[年 3]) -> ¥160,833.33
B32: 合計 | D32: 1 年目 | E32: 2 年目 | F32: 3 年目
B33: 純利益 (コスト) | D33: =利益[[#Totals],[1 年目]]-コスト[[#Totals],[年 1]] -> ¥9,166.67 | E33: =利益[[#Totals],[2 年目]]-コスト[[#Totals],[年 2]] -> ¥26,666.67 | F33: =利益[[#Totals],[3 年目]]-コスト[[#Totals],[年 3]] -> ¥39,166.67
B34: 税 | D34: =D33*税率 -> ¥2,750.00 | E34: =E33*税率 -> ¥8,000.00 | F34: =F33*税率 -> ¥11,750.00
B35: 税引後価格 | D35: =D33-D34 -> ¥6,416.67 | E35: ¥18,666.67 | F35: ¥27,416.67
B36: 足し戻された減価償却費 | D36: =C29 -> ¥63,333.33 | E36: =D29 -> ¥63,333.33 | F36: =E29 -> ¥63,333.33
B37: キャッシュ フロー | C37: =-初期投資[[#Totals],[年]] -> ¥-190,000.00 | D37: =D35+D36 -> ¥69,750.00 | E37: ¥82,000.00 | F37: ¥90,750.00
B38: 累計キャッシュ フロー | C38: =C37 -> ¥-190,000.00 | D38: =C38+D37 -> (¥120,250.00) | E38: (¥38,250.00) | F38: ¥52,500.00
B40: 評価指標 | C40: 値​​
B41: 正味現在価値 (NPV) | C41: =C37+(NPV(ROR,D37:F37)) -> ¥9,359.50
B42: 内部利益率 (IRR) | C42: =IRR(C37:F37) -> 12.66%
B43: 返済年数 | C43: =IF(F38<=0,"3 年を超えています",IF(E38<=0,(F37-F38)/F37+2,IF(D38<=0,(E37-E38)/E37+1,IF(C38<=0,(D37-D38)/D37,"使用できません")))) -> 2.42
